[Event "Chess Festival Groningen 2023 | A"]
[Site "Groningen, Netherlands"]
[Date "2023.12.30"]
[Round "9.24"]
[White "Mierins, Emils Janis"]
[Black "Goudriaan, Rafael"]
[Result "1-0"]
[TimeControl "90min/40moves + 30min + 30sec/move"]
[WhiteElo "2258"]
[BlackElo "2039"]

1. e4 {[%clk 01:30:57]} c5 {[%clk 01:30:57]} 2. Nf3 {[%clk 01:31:21]} {[%emt
00:00:09]} d6 {[%clk 01:31:16]} 3. d4 {[%clk 01:31:46]} cxd4 {[%clk 01:31:45]}
4. Qxd4 {[%clk 01:32:08]} {[%emt 00:00:04]} Nf6 {[%clk 01:32:12]} 5. Bb5+
{[%clk 01:32:31]} {[%emt 00:00:09]} Bd7 {[%clk 01:31:52]} {[%emt 00:01:15]} 6.
c4 {[%clk 01:32:54]} a6 {[%clk 01:32:19]} {[%emt 00:00:09]} 7. Bxd7+ {[%clk
01:33:19]} Nbxd7 {[%clk 01:32:34]} 8. Nc3 {[%clk 01:33:38]} {[%emt 00:00:12]}
g6 {[%clk 01:32:59]} 9. O-O {[%clk 01:34:01]} {[%emt 00:00:04]} Bg7 {[%clk
01:33:23]} {[%emt 00:00:05]} 10. Qd3 {[%clk 01:34:16]} {[%emt 00:00:23]} O-O
{[%clk 01:31:25]} {[%emt 00:02:57]} 11. Bd2 {[%clk 01:33:14]} {[%emt 00:00:54]}
Qc7 {[%clk 01:23:02]} {[%emt 00:08:53]} 12. Rac1 {[%clk 01:32:45]} {[%emt
00:00:59]} Rac8 {[%clk 01:16:12]} {[%emt 00:07:20]} 13. b3 {[%clk 01:33:07]}
{[%emt 00:00:36]} Nc5 {[%clk 01:06:01]} {[%emt 00:10:34]} 14. Qe2 {[%clk
01:32:59]} {[%emt 00:00:16]} e6 {[%clk 01:05:32]} {[%emt 00:00:59]} 15. h3
{[%clk 01:31:35]} {[%emt 00:01:57]} Rfd8 {[%clk 01:02:53]} {[%emt 00:03:05]} 16.
Rfd1 {[%clk 01:32:00]} {[%emt 00:00:51]} b6 {[%clk 01:02:52]} 17. Bf4 {[%clk
01:31:15]} {[%emt 00:01:02]} Qb7 {[%clk 01:01:43]} {[%emt 00:02:19]} 18. Nd2
{[%clk 01:25:51]} {[%emt 00:05:14]} d5 {[%clk 00:59:07]} {[%emt 00:03:39]} 19.
e5 {[%clk 01:26:05]} {[%emt 00:00:08]} Nfe4 {[%clk 00:58:37]} {[%emt 00:00:35]}
20. Nf3 {[%clk 01:20:09]} {[%emt 00:06:26]} dxc4 {[%clk 00:48:13]} {[%emt
00:10:53]} 21. Rxd8+ {[%clk 01:12:46]} {[%emt 00:08:35]} Rxd8 {[%clk 00:47:34]}
{[%emt 00:00:27]} 22. Nxe4 {[%clk 01:12:56]} {[%emt 00:00:53]} Qxe4 {[%clk
00:45:22]} {[%emt 00:02:08]} 23. Qxe4 {[%clk 01:13:20]} {[%emt 00:00:35]} Nxe4
{[%clk 00:45:45]} 24. Rxc4 {[%clk 01:13:39]} Nc5 {[%clk 00:45:42]} {[%emt
00:00:23]} 25. Be3 {[%clk 01:12:58]} {[%emt 00:01:14]} Nd7 {[%clk 00:40:18]}
{[%emt 00:05:51]} 26. Rd4 {[%clk 01:12:08]} {[%emt 00:01:22]} Bf8 {[%clk
00:40:32]} {[%emt 00:00:13]} 27. Bg5 {[%clk 01:11:50]} {[%emt 00:00:48]} 1-0

[Event "Chess Festival Groningen 2023 | A"]
[Site "Groningen, Netherlands"]
[Date "2023.12.30"]
[Round "9.25"]
[White "Nagarkatte, Vedant"]
[Black "Bakija, Alan"]
[Result "1-0"]
[TimeControl "90min/40moves + 30min + 30sec/move"]
[WhiteFideId "25636227"]
[WhiteElo "2320"]
[BlackElo "2010"]

1. e4 {[%clk 01:12:24]} {[%emt 00:18:35]} e5 {[%clk 01:30:54]} {[%emt
00:00:09]} 2. Nf3 {[%clk 01:12:02]} {[%emt 00:00:52]} Nc6 {[%clk 01:31:08]}
{[%emt 00:00:14]} 3. Bc4 {[%clk 01:11:52]} {[%emt 00:00:46]} Bc5 {[%clk
01:31:32]} {[%emt 00:00:05]} 4. c3 {[%clk 01:12:20]} {[%emt 00:00:04]} Nf6
{[%clk 01:31:55]} {[%emt 00:00:05]} 5. d3 {[%clk 01:12:36]} {[%emt 00:00:10]}
O-O {[%clk 01:29:18]} {[%emt 00:03:44]} 6. Nbd2 {[%clk 01:12:47]} {[%emt
00:00:14]} d5 {[%clk 01:29:01]} {[%emt 00:00:15]} 7. exd5 {[%clk 01:12:35]}
{[%emt 00:00:50]} Nxd5 {[%clk 01:29:25]} {[%emt 00:00:04]} 8. Ne4 {[%clk
01:13:04]} Be7 {[%clk 01:28:29]} {[%emt 00:01:24]} 9. O-O {[%clk 01:12:05]}
{[%emt 00:01:24]} Bf5 {[%clk 01:26:31]} {[%emt 00:02:29]} 10. Re1 {[%clk
01:10:37]} {[%emt 00:01:57]} Bg6 {[%clk 01:26:46]} {[%emt 00:00:39]} 11. a4
{[%clk 01:03:49]} {[%emt 00:06:54]} a6 {[%clk 01:20:10]} {[%emt 00:07:28]} 12.
a5 {[%clk 00:56:46]} {[%emt 00:07:11]} Nf6 {[%clk 01:01:11]} {[%emt 00:19:29]}
13. Qe2 {[%clk 00:45:19]} {[%emt 00:11:57]} Nxe4 {[%clk 00:57:36]} {[%emt
00:04:48]} 14. dxe4 {[%clk 00:45:43]} Qd7 {[%clk 00:54:13]} {[%emt 00:03:14]}
15. Rd1 {[%clk 00:42:57]} {[%emt 00:03:17]} Bd6 {[%clk 00:45:57]} {[%emt
00:08:45]} 16. Nh4 {[%clk 00:38:48]} {[%emt 00:04:39]} Qe7 {[%clk 00:43:48]}
{[%emt 00:02:39]} 17. Qg4 {[%clk 00:31:45]} {[%emt 00:07:33]} h5 {[%clk
00:30:00]} {[%emt 00:14:19]} 18. Qxg6 {[%clk 00:30:25]} {[%emt 00:02:10]} Qxh4
{[%clk 00:30:02]} {[%emt 00:00:18]} 19. Bg5 {[%clk 00:30:32]} {[%emt 00:00:12]}
Ne7 {[%clk 00:25:54]} {[%emt 00:05:15]} 20. Qxf7+ {[%emt 00:00:45]} 1-0

[Event "Chess Festival Groningen 2023 | A"]
[Site "Groningen, Netherlands"]
[Date "2023.12.30"]
[Round "9.26"]
[White "Grooten, Herman"]
[Black "Vijayakumar, Rishi"]
[Result "0-1"]
[TimeControl "90min/40moves + 30min + 30sec/move"]
[WhiteElo "2243"]
[BlackElo "2104"]

1. Nf3 {[%clk 01:30:56]} {[%emt 00:00:16]} d5 {[%clk 01:30:24]} {[%emt
00:00:25]} 2. c4 {[%clk 01:31:14]} {[%emt 00:00:12]} d4 {[%clk 01:30:38]}
{[%emt 00:00:08]} 3. g3 {[%clk 01:30:39]} {[%emt 00:01:17]} c5 {[%clk
01:24:54]} {[%emt 00:06:10]} 4. b4 {[%clk 01:30:23]} {[%emt 00:00:49]} Nf6
{[%clk 01:25:20]} {[%emt 00:00:04]} 5. bxc5 {[%clk 01:27:21]} {[%emt 00:03:32]}
Nc6 {[%clk 01:25:24]} {[%emt 00:00:22]} 6. d3 {[%clk 01:27:37]} {[%emt
00:00:14]} e5 {[%clk 01:24:46]} {[%emt 00:01:12]} 7. Bg2 {[%clk 01:27:49]}
{[%emt 00:00:13]} Bxc5 {[%clk 01:24:19]} {[%emt 00:00:57]} 8. O-O {[%clk
01:27:14]} {[%emt 00:01:10]} h6 {[%clk 01:23:12]} {[%emt 00:01:32]} 9. Ba3
{[%clk 01:25:08]} {[%emt 00:02:37]} Nd7 {[%clk 01:15:42]} {[%emt 00:08:00]} 10.
Nfd2 {[%clk 01:23:52]} {[%emt 00:01:46]} O-O {[%clk 01:14:33]} {[%emt
00:01:40]} 11. Qc1 {[%clk 01:23:19]} {[%emt 00:01:06]} f5 {[%clk 01:00:43]}
{[%emt 00:14:16]} 12. Nb3 {[%clk 01:22:36]} {[%emt 00:01:21]} Bxa3 {[%clk
00:59:59]} {[%emt 00:01:06]} 13. Qxa3 {[%clk 01:22:24]} {[%emt 00:00:41]} Nf6
{[%clk 00:37:53]} {[%emt 00:22:39]} 14. N1d2 {[%clk 01:22:12]} {[%emt
00:00:40]} Re8 {[%clk 00:37:31]} {[%emt 00:00:52]} 15. Bxc6 {[%clk 01:16:02]}
{[%emt 00:06:39]} bxc6 {[%clk 00:37:56]} {[%emt 00:00:08]} 16. Qc5 {[%clk
01:16:15]} {[%emt 00:00:15]} Qc7 {[%clk 00:24:29]} {[%emt 00:13:56]} 17. e3
{[%clk 01:02:57]} {[%emt 00:17:18]} a5 {[%clk 00:23:44]} 18. exd4 {[%clk
00:57:26]} {[%emt 00:03:45]} a4 {[%clk 00:23:52]} {[%emt 00:00:22]} 19. Nc1
{[%clk 00:51:24]} {[%emt 00:06:38]} Nd7 {[%clk 00:18:58]} {[%emt 00:05:25]} 20.
Qb4 {[%clk 00:49:13]} {[%emt 00:02:39]} exd4 {[%clk 00:19:24]} 21. c5 {[%clk
00:48:56]} {[%emt 00:00:47]} Qa5 {[%clk 00:14:31]} {[%emt 00:05:22]} 22. Qc4+
{[%clk 00:43:49]} {[%emt 00:05:37]} Kh7 {[%clk 00:14:38]} {[%emt 00:00:23]} 23.
Nf3 {[%clk 00:43:45]} {[%emt 00:00:42]} Qxc5 {[%clk 00:13:38]} {[%emt
00:01:29]} 24. Nxd4 {[%clk 00:35:27]} {[%emt 00:08:45]} Qxc4 {[%clk 00:13:38]}
{[%emt 00:00:31]} 25. dxc4 {[%clk 00:35:52]} {[%emt 00:00:17]} Ne5 {[%clk
00:12:50]} {[%emt 00:01:01]} 26. c5 {[%clk 00:34:16]} {[%emt 00:06:42]} Ba6
{[%clk 00:10:01]} 27. Rd1 {[%clk 00:26:36]} {[%emt 00:07:02]} Rad8 {[%clk
00:10:02]} {[%emt 00:00:24]} 28. Kg2 {[%clk 00:25:12]} {[%emt 00:01:50]} Rd5
{[%clk 00:09:40]} {[%emt 00:00:51]} 29. Nce2 {[%clk 00:23:18]} {[%emt
00:02:29]} Red8 {[%clk 00:09:38]} {[%emt 00:00:31]} 30. Rd2 {[%clk 00:16:36]}
{[%emt 00:07:09]} Ng6 {[%clk 00:05:42]} {[%emt 00:04:26]} 31. Rb2 {[%clk
00:10:25]} {[%emt 00:06:44]} Rxd4 {[%clk 00:05:54]} {[%emt 00:00:19]} 32. Nxd4
{[%clk 00:10:51]} Rxd4 {[%clk 00:06:23]} {[%emt 00:00:05]} 33. Rb6 {[%clk
00:10:39]} {[%emt 00:00:40]} Bc4 {[%clk 00:06:28]} {[%emt 00:00:23]} 34. a3
{[%clk 00:10:31]} {[%emt 00:00:37]} Bd5+ {[%clk 00:06:34]} {[%emt 00:00:25]} 35.
Kf1 {[%clk 00:10:39]} {[%emt 00:00:21]} Ne5 {[%clk 00:05:46]} {[%emt 00:01:19]}
36. Rab1 {[%clk 00:03:30]} {[%emt 00:07:40]} Nf3 {[%clk 00:03:14]} {[%emt
00:03:00]} 37. R1b4 {[%clk 00:03:14]} {[%emt 00:00:47]} Rd2 {[%clk 00:01:54]}
{[%emt 00:01:50]} 38. h3 {[%clk 00:02:25]} {[%emt 00:01:18]} Be4 {[%clk
00:01:44]} {[%emt 00:00:41]} 39. g4 {[%clk 00:02:39]} {[%emt 00:00:20]} Rd1+
{[%clk 00:02:02]} {[%emt 00:00:07]} 0-1

[Event "Chess Festival Groningen 2023 | A"]
[Site "Groningen, Netherlands"]
[Date "2023.12.30"]
[Round "9.27"]
[White "Spit, Vincent"]
[Black "Ritzerveld, Noah"]
[Result "1/2-1/2"]
[TimeControl "90min/40moves + 30min + 30sec/move"]
[WhiteElo "2076"]
[BlackElo "1997"]

1. e4 {[%clk 01:30:53]} {[%emt 00:00:28]} e5 {[%clk 01:30:56]} 2. Nf3 {[%clk
01:31:18]} {[%emt 00:00:03]} Nc6 {[%clk 01:31:23]} 3. Bb5 {[%clk 01:31:40]} a6
{[%clk 01:31:49]} {[%emt 00:00:17]} 4. Ba4 {[%clk 01:32:04]} Nf6 {[%clk
01:32:15]} 5. O-O {[%clk 01:32:23]} {[%emt 00:00:10]} Be7 {[%clk 01:32:39]}
{[%emt 00:00:03]} 6. Re1 {[%clk 01:32:18]} {[%emt 00:00:34]} b5 {[%clk
01:33:04]} {[%emt 00:00:40]} 7. Bb3 {[%clk 01:32:42]} O-O {[%clk 01:33:08]}
{[%emt 00:00:12]} 8. a4 {[%clk 01:32:28]} {[%emt 00:00:32]} Bb7 {[%clk
01:33:06]} {[%emt 00:00:29]} 9. d3 {[%clk 01:32:10]} {[%emt 00:00:48]} d6
{[%clk 01:33:29]} {[%emt 00:00:18]} 10. h3 {[%clk 01:31:57]} {[%emt 00:00:44]}
Nd7 {[%clk 01:29:31]} {[%emt 00:04:18]} 11. Be3 {[%clk 01:30:05]} {[%emt
00:02:19]} Nc5 {[%clk 01:22:47]} {[%emt 00:07:14]} 12. Bxc5 {[%clk 01:28:53]}
{[%emt 00:02:20]} dxc5 {[%clk 01:23:12]} 13. Bd5 {[%clk 01:19:56]} {[%emt
00:08:53]} Qd6 {[%clk 01:21:14]} {[%emt 00:02:30]} 14. Nc3 {[%clk 01:19:03]}
{[%emt 00:01:20]} b4 {[%clk 01:18:44]} {[%emt 00:03:00]} 15. Ne2 {[%clk
01:18:22]} {[%emt 00:01:11]} Rab8 {[%clk 01:16:51]} {[%emt 00:02:30]} 16. Nd2
{[%clk 01:15:17]} {[%emt 00:03:37]} Bg5 {[%clk 01:12:08]} {[%emt 00:05:44]} 17.
Nc4 {[%clk 01:13:03]} {[%emt 00:02:20]} Qe7 {[%clk 01:11:25]} {[%emt 00:01:06]}
18. b3 {[%clk 01:11:14]} {[%emt 00:02:11]} Kh8 {[%clk 01:10:54]} {[%emt
00:01:04]} 19. Ng3 {[%clk 01:07:36]} {[%emt 00:04:05]} g6 {[%clk 01:10:33]}
{[%emt 00:01:04]} 20. Nf1 {[%clk 01:05:10]} {[%emt 00:02:44]} Rbd8 {[%clk
01:05:43]} {[%emt 00:05:18]} 21. Nfe3 {[%clk 01:00:23]} {[%emt 00:05:23]} f5
{[%clk 00:59:08]} {[%emt 00:06:57]} 22. f3 {[%clk 00:57:40]} {[%emt 00:03:17]}
Bh4 {[%clk 00:52:05]} {[%emt 00:07:29]} 23. Rf1 {[%clk 00:57:16]} {[%emt
00:00:54]} Qg5 {[%clk 00:49:25]} {[%emt 00:03:11]} 24. c3 {[%clk 00:48:33]}
{[%emt 00:09:21]} bxc3 {[%clk 00:46:23]} {[%emt 00:03:22]} 25. Bxc6 {[%clk
00:47:52]} {[%emt 00:01:12]} Bxc6 {[%clk 00:46:39]} {[%emt 00:00:18]} 26. Qc2
{[%clk 00:46:39]} {[%emt 00:01:41]} Bg3 {[%clk 00:40:10]} {[%emt 00:06:57]} 27.
Qxc3 {[%clk 00:43:37]} {[%emt 00:03:32]} Bf4 {[%clk 00:40:33]} {[%emt
00:00:40]} 28. Rfe1 {[%clk 00:43:07]} {[%emt 00:00:28]} Rd4 {[%clk 00:37:43]}
{[%emt 00:03:19]} 29. Rad1 {[%clk 00:35:54]} {[%emt 00:07:43]} fxe4 {[%clk
00:36:12]} {[%emt 00:02:37]} 30. dxe4 {[%clk 00:34:49]} {[%emt 00:00:57]} Rfd8
{[%clk 00:32:46]} {[%emt 00:03:57]} 31. Nd5 {[%clk 00:17:10]} {[%emt 00:18:13]}
Bxd5 {[%clk 00:31:06]} {[%emt 00:02:09]} 32. exd5 {[%clk 00:17:25]} {[%emt
00:00:12]} R8xd5 {[%clk 00:28:38]} {[%emt 00:03:13]} 33. Rxd4 {[%clk 00:17:38]}
{[%emt 00:00:08]} cxd4 {[%clk 00:25:54]} {[%emt 00:03:11]} 34. Qb4 {[%clk
00:17:17]} {[%emt 00:00:48]} Rd8 {[%clk 00:23:13]} {[%emt 00:03:13]} 35. Qa5
{[%clk 00:15:50]} {[%emt 00:02:00]} Re8 {[%clk 00:08:51]} {[%emt 00:14:57]} 36.
Qxa6 {[%clk 00:14:08]} {[%emt 00:02:02]} Qg3 {[%clk 00:07:52]} {[%emt
00:01:29]} 37. Kf1 {[%clk 00:13:50]} {[%emt 00:00:47]} Qh2 {[%clk 00:07:13]}
{[%emt 00:01:08]} 38. Re4 {[%clk 00:10:43]} {[%emt 00:03:40]} Bg3 {[%clk
00:06:18]} {[%emt 00:01:24]} 39. Qf6+ {[%clk 00:09:41]} {[%emt 00:01:37]} Kg8
{[%clk 00:06:43]} {[%emt 00:00:19]} 40. Rg4 {[%clk 00:08:53]} {[%emt 00:00:58]}
Qh1+ {[%clk 00:07:05]} {[%emt 00:00:19]} 41. Ke2 {[%clk 00:06:35]} {[%emt
00:02:36]} Qe1+ {[%clk 00:01:56]} {[%emt 00:05:40]} 42. Kd3 {[%clk 00:06:47]}
{[%emt 00:00:19]} Qb1+ {[%clk 00:26:40]} {[%emt 00:06:28]} 43. Kd2 {[%clk
00:34:34]} {[%emt 00:02:00]} Bf4+ {[%clk 00:20:31]} {[%emt 00:06:49]} 44. Rxf4
{[%clk 00:30:59]} {[%emt 00:04:00]} exf4 {[%clk 00:20:55]} {[%emt 00:00:18]} 45.
Qxd4 {[%clk 00:30:14]} {[%emt 00:00:56]} Qe1+ {[%clk 00:19:21]} {[%emt
00:02:05]} 46. Kc2 {[%clk 00:29:40]} {[%emt 00:01:03]} Qe2+ {[%clk 00:17:05]}
{[%emt 00:02:50]} 47. Nd2 {[%clk 00:27:59]} {[%emt 00:02:17]} Qe3 {[%clk
00:14:10]} {[%emt 00:03:17]} 48. Qc4+ {[%clk 00:27:15]} {[%emt 00:01:38]} Kg7
{[%clk 00:12:47]} {[%emt 00:01:31]} 49. Qxc7+ {[%clk 00:26:20]} {[%emt
00:01:21]} Re7 {[%clk 00:12:55]} {[%emt 00:00:23]} 50. Qc3+ {[%clk 00:25:07]}
{[%emt 00:01:56]} Kh6 {[%clk 00:13:09]} {[%emt 00:00:05]} 51. Qf6 {[%clk
00:19:43]} {[%emt 00:05:52]} Rd7 {[%clk 00:11:38]} {[%emt 00:02:08]} 52. Nc4
{[%clk 00:17:31]} {[%emt 00:02:34]} Qe2+ {[%clk 00:11:28]} {[%emt 00:00:40]} 53.
Kc3 {[%clk 00:17:38]} {[%emt 00:00:41]} Rd3+ {[%clk 00:10:27]} {[%emt
00:01:47]} 54. Kb4 {[%clk 00:17:59]} Qe1+ {[%clk 00:09:12]} {[%emt 00:01:20]}
55. Ka3 {[%clk 00:16:52]} {[%emt 00:01:37]} Qc1+ {[%clk 00:08:20]} {[%emt
00:01:45]} 56. Kb4 {[%clk 00:17:02]} {[%emt 00:00:03]} Qe1+ {[%clk 00:07:44]}
{[%emt 00:01:16]} 57. Ka3 {[%clk 00:17:08]} {[%emt 00:00:11]} Qc1+ {[%clk
00:06:07]} {[%emt 00:02:04]} 58. Kb4 {[%clk 00:17:31]} {[%emt 00:00:12]} Rd7
{[%clk 00:04:32]} {[%emt 00:02:02]} 59. Qf8+ {[%clk 00:16:33]} {[%emt
00:01:29]} Kh5 {[%clk 00:04:52]} {[%emt 00:00:08]} 60. Qb8 {[%clk 00:12:17]}
{[%emt 00:04:44]} Qe1+ {[%clk 00:04:43]} {[%emt 00:00:40]} 61. Ka3 {[%clk
00:12:28]} {[%emt 00:00:29]} Qc1+ {[%clk 00:04:28]} {[%emt 00:00:34]} 62. Kb4
{[%clk 00:12:26]} {[%emt 00:00:35]} Rd5 {[%clk 00:04:15]} {[%emt 00:00:41]} 63.
Qb7 {[%clk 00:11:21]} {[%emt 00:01:33]} Qe1+ {[%clk 00:04:08]} {[%emt
00:00:40]} 64. Ka3 {[%clk 00:11:43]} {[%emt 00:00:08]} Qa1+ {[%clk 00:03:15]}
{[%emt 00:01:21]} 65. Kb4 {[%clk 00:12:07]} {[%emt 00:00:15]} Qe1+ {[%clk
00:03:23]} {[%emt 00:00:13]} 66. Ka3 {[%clk 00:12:31]} {[%emt 00:00:12]} Rd1
{[%emt 00:01:32]} 67. Qxh7+ Kg5 1/2-1/2

[Event "Chess Festival Groningen 2023 | A"]
[Site "Groningen, Netherlands"]
[Date "2023.12.30"]
[Round "9.28"]
[White "De Jong, Mathijs"]
[Black "Nicolai, Amir"]
[Result "1/2-1/2"]
[TimeControl "90min/40moves + 30min + 30sec/move"]
[WhiteElo "2008"]
[BlackElo "2156"]

1. d4 {[%clk 01:30:55]} d5 {[%clk 01:30:59]} 2. c4 {[%clk 01:31:21]} e6 {[%clk
01:31:26]} 3. Nf3 {[%clk 01:31:19]} {[%emt 00:00:10]} c6 {[%clk 01:31:52]} 4.
Nc3 {[%clk 01:31:38]} {[%emt 00:00:14]} dxc4 {[%clk 01:32:17]} {[%emt
00:00:03]} 5. g3 {[%clk 01:31:45]} {[%emt 00:00:23]} Nf6 {[%clk 01:25:56]}
{[%emt 00:06:51]} 6. Bg2 {[%clk 01:30:05]} {[%emt 00:02:21]} Nbd7 {[%clk
01:24:57]} {[%emt 00:01:16]} 7. O-O {[%clk 01:30:07]} {[%emt 00:00:27]} b5
{[%clk 01:24:44]} {[%emt 00:00:43]} 8. e4 {[%clk 01:29:12]} {[%emt 00:01:41]}
Bb7 {[%clk 01:18:15]} {[%emt 00:06:43]} 9. e5 {[%clk 01:27:35]} {[%emt
00:02:06]} Nd5 {[%clk 01:18:23]} {[%emt 00:00:26]} 10. Ng5 {[%clk 01:26:41]}
{[%emt 00:01:23]} h6 {[%clk 01:16:52]} {[%emt 00:01:58]} 11. Nxe6 {[%clk
01:23:55]} {[%emt 00:03:23]} fxe6 {[%clk 01:17:19]} 12. Qh5+ {[%clk 01:24:18]}
{[%emt 00:00:14]} Ke7 {[%clk 01:17:44]} 13. Ne4 {[%clk 01:24:28]} {[%emt
00:00:39]} Qe8 {[%clk 01:13:58]} {[%emt 00:03:51]} 14. Bg5+ {[%clk 01:22:18]}
{[%emt 00:02:39]} hxg5 {[%clk 01:14:21]} {[%emt 00:00:36]} 15. Qxh8 {[%clk
01:22:43]} Kd8 {[%clk 01:14:21]} {[%emt 00:00:07]} 16. Nxg5 {[%clk 01:19:19]}
{[%emt 00:03:57]} Qe7 {[%clk 01:06:17]} {[%emt 00:08:30]} 17. h4 {[%clk
01:12:40]} {[%emt 00:07:09]} Kc7 {[%clk 01:06:05]} {[%emt 00:00:45]} 18. Qg8
{[%clk 01:07:43]} {[%emt 00:05:23]} Re8 {[%clk 00:59:58]} {[%emt 00:06:38]} 19.
Ne4 {[%clk 00:50:05]} {[%emt 00:18:08]} Qd8 {[%clk 00:55:45]} {[%emt 00:04:46]}
20. Ng5 {[%clk 00:47:15]} {[%emt 00:03:17]} Qe7 {[%clk 00:54:46]} {[%emt
00:01:47]} 21. Ne4 {[%clk 00:47:32]} {[%emt 00:00:04]} Qd8 {[%clk 00:54:54]}
{[%emt 00:00:14]} 22. Ng5 {[%clk 00:47:56]} {[%emt 00:00:11]} 1/2-1/2

[Event "Chess Festival Groningen 2023 | A"]
[Site "Groningen, Netherlands"]
[Date "2023.12.30"]
[Round "9.29"]
[White "Van Der Leest, Bert"]
[Black "Groenewoud, Joel"]
[Result "1/2-1/2"]
[TimeControl "90min/40moves + 30min + 30sec/move"]
[WhiteFideId "1009460"]
[WhiteElo "2142"]
[BlackElo "1997"]

1. d4 {[%clk 01:30:55]} {[%emt 00:00:43]} Nf6 {[%clk 01:30:55]} 2. Nc3 {[%clk
01:31:17]} d5 {[%clk 01:31:19]} 3. e4 {[%clk 01:31:39]} dxe4 {[%clk 01:31:24]}
{[%emt 00:00:16]} 4. Bg5 {[%clk 01:32:01]} {[%emt 00:00:22]} Bf5 {[%emt
00:05:07]} 5. f3 {[%clk 01:30:19]} {[%emt 00:00:08]} e3 {[%clk 01:24:04]}
{[%emt 00:05:13]} 6. g4 {[%clk 01:29:58]} {[%emt 00:00:40]} Bg6 {[%clk
01:24:04]} {[%emt 00:00:33]} 7. h4 {[%clk 01:30:07]} {[%emt 00:00:18]} h6
{[%clk 01:23:37]} {[%emt 00:01:00]} 8. Bxe3 {[%clk 01:30:30]} {[%emt 00:00:05]}
e6 {[%clk 01:23:02]} {[%emt 00:01:16]} 9. Nh3 {[%clk 01:30:00]} {[%emt
00:00:47]} Bb4 {[%clk 01:17:51]} {[%emt 00:05:41]} 10. Nf4 {[%clk 01:28:46]}
{[%emt 00:01:51]} O-O {[%clk 01:09:29]} {[%emt 00:08:45]} 11. Nxg6 {[%clk
01:28:26]} {[%emt 00:00:49]} fxg6 {[%clk 01:09:48]} {[%emt 00:00:18]} 12. Qd3
{[%clk 01:24:18]} {[%emt 00:04:35]} Nd5 {[%emt 00:15:51]} 13. Bxh6 {[%clk
01:13:17]} {[%emt 00:00:10]} gxh6 {[%clk 01:02:52]} {[%emt 00:03:21]} 14. Qxg6+
{[%clk 01:13:41]} {[%emt 00:00:33]} Kh8 {[%clk 01:03:12]} {[%emt 00:00:03]} 15.
Qxh6+ {[%clk 01:13:42]} {[%emt 00:00:09]} Kg8 {[%emt 00:00:27]} 16. Qg6+ {[%emt
00:02:40]} 1/2-1/2

[Event "Chess Festival Groningen 2023 | A"]
[Site "Groningen, Netherlands"]
[Date "2023.12.30"]
[Round "9.30"]
[White "Ter-Avetisjana, Agnesa Stepania"]
[Black "Krasenkowa, Elena"]
[Result "1/2-1/2"]
[TimeControl "90min/40moves + 30min + 30sec/move"]
[WhiteFideId "11614900"]
[WhiteElo "1974"]
[BlackElo "2109"]

1. e4 {[%clk 01:30:58]} g6 {[%clk 01:30:55]} 2. d4 {[%clk 01:31:20]} {[%emt
23:02:57]} Bg7 {[%clk 01:31:21]} 3. Nc3 {[%clk 01:31:41]} {[%emt 00:00:08]} c6
{[%clk 01:31:47]} {[%emt 00:00:03]} 4. f4 {[%clk 01:31:56]} d5 {[%clk
01:32:12]} {[%emt 00:00:24]} 5. e5 {[%clk 01:32:12]} {[%emt 00:00:07]} Nh6
{[%clk 01:32:17]} {[%emt 00:00:24]} 6. Nf3 {[%clk 01:24:56]} {[%emt 00:07:54]}
O-O {[%emt 00:03:16]} 7. h3 {[%emt 00:01:08]} f6 {[%clk 01:30:03]} 8. Be2
{[%clk 01:19:29]} {[%emt 00:05:19]} Be6 {[%clk 01:23:09]} {[%emt 00:07:18]} 9.
O-O {[%clk 01:18:06]} {[%emt 00:02:18]} Qc8 {[%clk 01:21:46]} {[%emt 00:01:28]}
10. Kh2 {[%clk 01:16:10]} {[%emt 00:02:23]} b5 {[%clk 01:22:00]} {[%emt
00:00:26]} 11. Be3 {[%clk 01:12:26]} {[%emt 00:04:06]} a5 {[%clk 01:22:04]}
{[%emt 00:00:27]} 12. a3 {[%emt 00:01:40]} Na6 {[%clk 01:20:54]} {[%emt
00:01:14]} 13. Qd2 {[%clk 01:10:56]} Nc7 {[%clk 01:20:52]} {[%emt 00:01:43]} 14.
Nd1 {[%clk 01:06:36]} Nf7 {[%clk 01:16:03]} {[%emt 00:10:16]} 15. Nf2 {[%clk
01:00:48]} c5 {[%clk 01:11:17]} {[%emt 00:11:28]} 16. exf6 {[%clk 00:59:21]}
Bxf6 {[%clk 01:11:33]} {[%emt 00:02:12]} 17. dxc5 {[%clk 00:58:20]} Bxb2 {[%clk
01:11:57]} {[%emt 00:01:50]} 18. Rab1 Bxa3 {[%clk 01:06:51]} 19. Bxb5 {[%emt
00:05:26]} Bb4 {[%emt 00:07:46]} 20. c3 {[%clk 00:53:05]} {[%emt 00:00:23]}
Nxb5 {[%clk 00:59:46]} {[%emt 00:00:39]} 21. cxb4 {[%clk 00:53:27]} axb4 {[%clk
01:00:08]} {[%emt 00:00:03]} 22. Rxb4 {[%clk 00:53:06]} Na3 {[%clk 01:00:28]}
{[%emt 00:00:55]} 23. Qc3 {[%emt 00:03:29]} Nc4 {[%clk 01:00:13]} 24. Bc1
{[%clk 00:44:09]} {[%emt 00:07:17]} Ra2 {[%clk 00:33:45]} 25. Nd2 {[%clk
00:44:09]} d4 {[%clk 00:53:44]} 26. Qd3 {[%clk 00:44:09]} Ne3 {[%clk 00:53:44]}
27. Rg1 {[%clk 00:44:09]} Qxc5 {[%clk 00:53:44]} 28. Qxd4 {[%clk 00:44:09]}
Qxd4 {[%clk 00:53:44]} 29. Rxd4 {[%clk 00:44:09]} Nf5 {[%clk 00:53:44]} 30. Rd3
{[%clk 00:44:09]} N7d6 {[%clk 00:53:44]} 31. Re1 {[%clk 00:44:09]} Ng7 {[%clk
00:53:44]} 32. Nde4 {[%clk 00:44:09]} Bf5 {[%clk 00:53:44]} 33. Rd2 {[%clk
00:44:09]} Rxd2 {[%clk 00:53:44]} 34. Bxd2 {[%clk 00:44:09]} Rc8 {[%clk
00:53:44]} 35. Nxd6 {[%clk 00:44:09]} exd6 {[%clk 00:53:44]} 36. Ne4 {[%clk
00:44:09]} Rc2 {[%clk 00:53:44]} 37. Ba5 {[%clk 00:44:09]} Bxe4 {[%clk
00:53:44]} 38. Rxe4 {[%clk 00:44:09]} Nf5 {[%clk 00:53:44]} 39. Be1 {[%clk
00:44:09]} h5 {[%clk 00:53:44]} 40. Kg1 {[%clk 00:44:09]} h4 {[%clk 00:53:44]}
{+68} 1/2-1/2